Cogmind - Beta 14 @@@ ROGUE MODE // 2024.09.15 @ 13:52:57 Player: ZarZap Result: Destroyed by Y-64 Sentinel with KE Penetrator Performance ------------- Evolutions (1) 500 Regions Visited (5) 1000 Robots Destroyed (20) 100 Value Destroyed (600) 600 Prototype IDs (2) 40 Alien Tech Used (0) 0 Bonus (800) 800 TOTAL SCORE: 3040 Bonus ------- Pacifist 200 Met Imprinter 300 Was Imprinted 300 Cogmind --------- Core Integrity 0/400 Matter 282/300 Energy 20/100 System Corruption 0% Temperature Critical (582) Movement Core (600) Ox11 Location -6/Proximity Caves Parts ------- > --- POWER (1) -------- Ion Engine > --- PROPULSION (4) --- (None) > --- UTILITY (2) ------ Bomb Factory No. 2 > --- WEAPON (2) ------- (None) > --- INVENTORY (5) ---- Seismic Detector Relay Coupler [Programmer] (83) Hacking Drone Bay (1/1) Peak State ------------ > --- POWER ------------ Ion Engine > --- PROPULSION ------- Aluminum Leg Aluminum Leg Improved Aluminum Leg Improved Aluminum Leg > --- UTILITY ---------- Bomb Factory No. 2 > --- WEAPON ----------- Field Laser Heavy Particle Cannon > --- INVENTORY -------- Seismic Detector Relay Coupler [Programmer] Hacking Drone Bay [Rating: 26] Favorites ----------- Power Ion Engine Engine Ion Engine Power Core Light Nuclear Core Propulsion Improved Aluminum Leg Leg Improved Aluminum Leg Wheel Wheel Utility Small Storage Unit Device Matter Filter Storage Small Storage Unit Protection Improved Light Armor Plating Weapon Field Laser Energy Gun Field Laser Energy Cannon Heavy Particle Cannon Ballistic Gun Shotgun Build | -11 -10 -9 -9 -7 -6 ------- Run | Yrd Mat Mat Min Zio Pro Slots Evolved 2 | . . 2 . . . Power . | . . . . . . Propulsion 2 | . . 2 . . . Utility . | . . . . . . Weapon . | . . . . . . Parts Attached 24 | 6 . 13 2 2 1 Power 3 | 1 . 2 . . . Engine 2 | 1 . 1 . . . Core 1 | . . 1 . . . Reactor . | . . . . . . Propulsion 7 | 2 . 5 . . . Treads . | . . . . . . Leg 4 | . . 4 . . . Wheel 3 | 2 . 1 . . . Hover . | . . . . . . Flight . | . . . . . . Utility 7 | 1 . 2 1 2 1 Device 5 | . . 1 1 2 1 Storage 1 | 1 . . . . . Processor . | . . . . . . Hackware . | . . . . . . Protection 1 | . . 1 . . . Artifact . | . . . . . . Weapon 7 | 2 . 4 1 . . Energy Gun 3 | 1 . 2 . . . Energy Cannon 2 | . . 1 1 . . Ballistic Gun 2 | 1 . 1 . . . Ballistic Cannon . | . . . . . . Launcher . | . . . . . . Special Weapon . | . . . . . . Impact Weapon . | . . . . . . Slashing Weapon . | . . . . . . Piercing Weapon . | . . . . . . Special Melee Weapon . | . . . . . . Unidentified Prototypes 2 | . . . . 1 1 Parts Lost 8 | . . 2 . . 6 Power . | . . . . . . Propulsion 5 | . . 1 . . 4 Utility 1 | . . 1 . . . Weapon 2 | . . . . . 2 Highest Loss Streak 6 | . . 1 . . 6 To Critical Strikes . | . . . . . . Average Slot Usage (%) 95 | . 85 83 100 100 85 Engine 10 | . 14 6 11 11 11 Core 1 | . . 4 . . . Leg 35 | . . 14 44 44 37 Wheel 4 | . 28 15 . . . Device 8 | . . 1 10 11 11 Storage 10 | . 14 11 11 11 6 Protection 1 | . . 8 . . . Energy Gun 11 | . 14 13 11 11 9 Energy Cannon 8 | . . 3 7 11 9 Ballistic Gun 2 | . 14 5 3 . . Peak Build Rating 26 | 6 6 17 17 25 26 Average Rating 17 | 4 6 13 15 19 21 On Entrance 11 | . 6 6 17 16 21 Naked Turns . | . . . . . . Heaviest Build 44 | 11 11 22 20 22 44 Greatest Support 46 | 20 20 46 46 46 46 Greatest Overweight (x) 4 | . . 1 . . 4 Average Overweight (x) . | . . . . . . Largest Inventory Capacity 8 | 8 8 8 8 8 8 Average Capacity 7 | 7 8 8 8 8 7 Most Carried 8 | 2 3 8 8 8 8 Average Carried 7 | . 2 6 7 7 6 Final Capacity 8 | 8 8 8 8 8 5 Final Carried 8 | 2 3 8 7 8 3 Class Distribution -------------------- 79% | Scavenger-Mutant 20% | Mutant Dominant Class ---------------- Mutant | -10/Materials Mutant | -9/Materials Scavenger-Mutant | -9/Mines Scavenger-Mutant | -7/Zion Mutant | -6/Proximity Caves Resources | -11 -10 -9 -9 -7 -6 ----------- Run | Yrd Mat Mat Min Zio Pro Matter Collected 486 | 219 . 197 50 20 . Remotely . | . . . . . . Salvage Created 772 | . . 503 151 . 118 Parts 34 | . . 26 4 . 4 Haulers Intercepted . | . . . . . . Recyclers Shooed 2 | . . 2 . . . Parts Field Recycled . | . . . . . . Retrieved Matter . | . . . . . . Parts Self-Destructed 3 | . . . . . 3 Prevented . | . . . . . . Kills | -11 -10 -9 -9 -7 -6 ------- Run | Yrd Mat Mat Min Zio Pro Combat Hostiles Destroyed 18 | . . 12 4 . 2 Guns 15 | . . 11 4 . . Cannons 3 | . . 1 . . 2 Classes Destroyed 8 | . . 5 2 . 1 Worker 2 | . . 2 . . . Recycler 2 | . . 1 1 . . Swarmer 3 | . . 3 . . . Grunt 8 | . . 8 . . . Brawler 1 | . . . . . 1 Duelist 2 | . . 1 . . 1 Demolisher 2 | . . . 2 . . Assembled 2 | . . . 2 . . Best Kill Streak 4 | . . 4 3 . 2 Combat Bots Only 3 | . . 3 3 . 2 Max Kills in Single Turn 2 | . . 2 1 . 1 Gunslinging . | . . . . . . Exploded . | . . . . . . Melee . | . . . . . . Uniques/NPCs Destroyed . | . . . . . . Combat | -11 -10 -9 -9 -7 -6 -------- Run | Yrd Mat Mat Min Zio Pro Hostile Shots Fired 106 | . . 58 14 . 34 Missed 14 | . . 9 3 . 2 Damage Taken 1720 | . . 604 260 . 856 Core 411 | . . 170 28 . 213 Absorbed by Shields . | . . . . . . Core Remaining (%) 100 | 100 100 . . . . Volleys Fired 56 | . . 37 13 . 6 Largest 2 | . . 2 2 . 2 Hottest 138 | . . 138 138 . 138 Shots Fired 112 | . . 74 26 . 12 Gun 89 | . . 65 18 . 6 Cannon 23 | . . 9 8 . 6 Launcher . | . . . . . . Special . | . . . . . . Kinetic 25 | . . 20 5 . . Thermal 77 | . . 44 21 . 12 Explosive . | . . . . . . Electromagnetic 10 | . . 10 . . . Robot Hit Streak 12 | . . 5 5 . 12 Robot Miss Streak 4 | . . 4 3 . 2 Penetration Max . | . . . . . . Secondary Targets 1 | . . 1 . . . Max Gunslinging Chain 1 | . . 1 . . . Shots Hit Robots 68 | . . 42 16 . 10 Core Hits 42 | . . 27 8 . 7 Critical Kills . | . . . . . . Critical Parts Destroyed . | . . . . . . Critical Strikes 3 | . . . 2 . 1 Burn 3 | . . . 2 . 1 Melee Attacks . | . . . . . . Impact . | . . . . . . Slashing . | . . . . . . Piercing . | . . . . . . Sneak Attacks . | . . . . . . Combat Hostiles . | . . . . . . Follow-up Attacks . | . . . . . . Damage Inflicted 1265 | . . 749 291 . 225 Guns 888 | . . 572 216 . 100 Cannons 325 | . . 125 75 . 125 Explosions 46 | . . 46 . . . Melee . | . . . . . . Ramming 6 | . . 6 . . . Kinetic 228 | . . 164 64 . . Thermal 940 | . . 488 227 . 225 Explosive . | . . . . . . Electromagnetic 91 | . . 91 . . . Impact . | . . . . . . Slashing . | . . . . . . Piercing . | . . . . . . Highest Corruption . | . . . . . . Average Corruption . | . . . . . . Corruption Purged . | . . . . . . Corruption Blocked . | . . . . . . Overload Shots . | . . . . . . Overflow Damage . | . . . . . . Projectiles . | . . . . . . Explosions . | . . . . . . Melee . | . . . . . . Knockbacks . | . . . . . . Impact . | . . . . . . Kinetic . | . . . . . . Secondary . | . . . . . . Self-Inflicted Damage 3 | . . 3 . . . Shots . | . . . . . . Rammed 1 | . . 1 . . . Targets Rammed 1 | . . 1 . . . Kicked . | . . . . . . Crushed . | . . . . . . Highest Temperature 638 | . . 540 276 . 638 Average Temperature 185 | . . 199 92 . 380 Received Heat Transfer 424 | . . 267 40 . 117 Effects 8 | . . 4 1 . 3 Shutdowns 4 | . . 4 . . . Energy Bleed 3 | . . . 1 . 2 Short Circuit 1 | . . . . . 1 Siege Activations . | . . . . . . Robots Corrupted . | . . . . . . Combat Hostiles . | . . . . . . Parts Fried . | . . . . . . Impact Corruptions . | . . . . . . Robots Melted . | . . . . . . Combat Hostiles . | . . . . . . Parts Melted . | . . . . . . Heat Transferred 2051 | . . 978 592 . 481 Parts Sabotaged . | . . . . . . Parts Stolen . | . . . . . . Parts Stripped . | . . . . . . Power Chain Reactions 1 | . . 1 . . . Alert | -11 -10 -9 -9 -7 -6 ------- Run | Yrd Mat Mat Min Zio Pro Peak Influence 337 | . . 337 154 . . Initial 82 | . . . 82 . . Average 134 | . . 172 128 . . Maximum Alert Level 1 | . . 1 . . . Low Security (%) 73 | 100 100 52 100 . . Level 1 26 | . . 47 . . . Level 2 . | . . . . . . Level 3 . | . . . . . . Level 4 . | . . . . . . Level 5 . | . . . . . . High Security . | . . . . . . Max Security . | . . . . . . Squads Dispatched 2 | . . 1 . . 1 Investigation 1 | . . 1 . . . Extermination . | . . . . . . Reinforcement . | . . . . . . Assault 1 | . . . . . 1 Garrison . | . . . . . . Intercept . | . . . . . . Searches Triggered . | . . . . . . Construction Impeded . | . . . . . . Haulers Reinforced . | . . . . . . Active Scanning Responses . | . . . . . . Cargo Convoy Interrupts . | . . . . . . Stealth | -11 -10 -9 -9 -7 -6 --------- Run | Yrd Mat Mat Min Zio Pro Distress Signals 1 | . . 1 . . . Communications Jammed . | . . . . . . Distress Signals . | . . . . . . Times Spotted 34 | . . 18 9 . 7 Peak Tracking Total 8 | . . 6 6 . 8 Tactical Retreats 3 | . . 3 . . . Traps | -11 -10 -9 -9 -7 -6 ------- Run | Yrd Mat Mat Min Zio Pro Traps Triggered 1 | . . 1 . . . Indirectly . | . . . . . . Trap Hack Attempts . | . . . . . . Triggered . | . . . . . . Disarmed . | . . . . . . Reprogrammed . | . . . . . . Reused . | . . . . . . Traps Extracted . | . . . . . . Installed . | . . . . . . Triggered . | . . . . . . Machines | -11 -10 -9 -9 -7 -6 ---------- Run | Yrd Mat Mat Min Zio Pro Machines Disabled 2 | . . 2 . . . Max in Single Turn 1 | . . 1 . . . Machines Repaired . | . . . . . . Machines Dismantled . | . . . . . . Machines Sabotaged . | . . . . . . Overloaded Fab Kills . | . . . . . . Hacking | -11 -10 -9 -9 -7 -6 --------- Run | Yrd Mat Mat Min Zio Pro Machines Accessed . | . . . . . . Terminals . | . . . . . . Fabricators . | . . . . . . Repair Stations . | . . . . . . Recycling Units . | . . . . . . Scanalyzers . | . . . . . . Garrison Access . | . . . . . . Total Hacks . | . . . . . . Successful . | . . . . . . Failed . | . . . . . . Catastrophic . | . . . . . . Database Lockouts . | . . . . . . Manual . | . . . . . . Terminals . | . . . . . . Fabricators . | . . . . . . Repair Stations . | . . . . . . Recycling Units . | . . . . . . Scanalyzers . | . . . . . . Garrison Access . | . . . . . . Terminal Hacks . | . . . . . . Fabricator Hacks . | . . . . . . Repair Station Hacks . | . . . . . . Recycling Unit Hacks . | . . . . . . Scanalyzer . | . . . . . . Garrison Access Hacks . | . . . . . . Unauthorized Hacks . | . . . . . . Terminals . | . . . . . . Fabricators . | . . . . . . Repair Stations . | . . . . . . Recycling Units . | . . . . . . Scanalyzers . | . . . . . . Garrison Access . | . . . . . . Data Cores Recovered . | . . . . . . Used . | . . . . . . Hacking Detections . | . . . . . . Full Trace Events . | . . . . . . Feedback Events . | . . . . . . Feedback Blocked . | . . . . . . Robot Schematics Acquired 2 | . . . . 2 . Robots Built . | . . . . . . Authchips . | . . . . . . Time . | . . . . . . Total Robot Build Rating . | . . . . . . Part Schematics Acquired 12 | . . . . 12 . Parts Built . | . . . . . . Authchips . | . . . . . . Time . | . . . . . . Total Part Build Rating . | . . . . . . Parts Repaired . | . . . . . . Time . | . . . . . . Parts Recycled . | . . . . . . Recycled Matter . | . . . . . . Retrieved Matter . | . . . . . . Retrieved Components . | . . . . . . Parts Scanalyzed . | . . . . . . Part Schematics Acquired . | . . . . . . Parts Damaged . | . . . . . . Bothacking | -11 -10 -9 -9 -7 -6 ------------ Run | Yrd Mat Mat Min Zio Pro Used RIF Installer . | . . . . . . Robots Hacked . | . . . . . . Non-combat . | . . . . . . Combat . | . . . . . . Robot Hacks Applied . | . . . . . . Relay Couplers Released . | . . . . . . Fabnet Peak Effective % . | . . . . . . Robots Rewired . | . . . . . . Allies Hacked . | . . . . . . Hacks Repelled . | . . . . . . Allies | -11 -10 -9 -9 -7 -6 -------- Run | Yrd Mat Mat Min Zio Pro Total Allies 4 | . . . . 4 . Largest Group 4 | . . . . 4 . Highest-Rated Group 152 | . . . . 152 . Highest-Rated Ally 40 | . . . . 40 . Total Orders . | . . . . . . Ally Attacks . | . . . . . . Total Damage . | . . . . . . Kills . | . . . . . . Allies Corrupted . | . . . . . . Allies Melted . | . . . . . . Intel | -11 -10 -9 -9 -7 -6 ------- Run | Yrd Mat Mat Min Zio Pro Robot Analysis Total . | . . . . . . Derelict Logs Recovered 1 | . . . . 1 . Drone Launches . | . . . . . . Drone Recoveries . | . . . . . . Exploration | -11 -10 -9 -9 -7 -6 ------------- Run | Yrd Mat Mat Min Zio Pro Turns Passed 2011 | 47 65 427 233 1161 78 Spaces Moved 1473 | 45 80 230 134 938 46 Core 3 | 3 . . . . . Treads . | . . . . . . Legs 1175 | . . 57 134 938 46 Wheels 295 | 42 80 173 . . . Hover . | . . . . . . Flight . | . . . . . . Fastest Speed 50 | 50 80 80 120 120 120 Average Speed 113 | 78 80 96 120 120 126 Slowest Speed 400 | 80 80 120 120 120 400 Overloaded Moves . | . . . . . . Propulsion Burnouts . | . . . . . . Robots Hopped . | . . . . . . Cave-ins Triggered . | . . . . . . Exploration Rate (%) 30 | 3 22 20 42 89 7 Regions Visited 5 Branch Regions 3 Pre-discovered Areas 2 | . . . 1 1 . Known Exits Taken . | . . . . . . Unknown Exits Taken 5 | 1 1 1 1 1 . Scrap Searched 3 | . . . 1 2 . Spaces Dug . | . . . . . . Terrain Destroyed 5 | . . 1 4 . . Melee . | . . . . . . Projectile 5 | . . 1 4 . . AOE . | . . . . . . Terrain Rammed . | . . . . . . Walls Destroyed . | . . . . . . Machines Disabled . | . . . . . . Actions | -11 -10 -9 -9 -7 -6 --------- Run | Yrd Mat Mat Min Zio Pro Total 1702 | 53 80 360 179 975 55 Wait 125 | 1 . 70 30 24 . Move 1468 | 44 79 229 133 937 46 Hop . | . . . . . . Pick Up 16 | 2 1 7 . 6 . Fast Attach 11 | 6 . 5 . . . Attach 3 | . . 2 . . 1 Detach . | . . . . . . Swap 10 | . . 6 2 2 . Drop 12 | . . 3 1 6 2 Fire 56 | . . 37 13 . 6 Melee . | . . . . . . Ram 1 | . . 1 . . . Kick . | . . . . . . Crush . | . . . . . . Escape Stasis . | . . . . . . Rewire . | . . . . . . Trap . | . . . . . . Miscellaneous . | . . . . . . Route ------- -11/Scrapyard -10/Materials -9/Materials -9/Mines -7/Zion -6/Proximity Caves History --------- Turn | Location | Event 23 | -11/Scrapyard | Discovered new exit (range 16) 48 | -11/Scrapyard | Entered Materials 106 | -10/Materials | Discovered new exit (range 9) 113 | -10/Materials | Entered another Materials area 113 | -9/Materials | Evolved 2 slots: Propulsion x2 308 | -9/Materials | Build established: Mutant 534 | -9/Materials | Discovered new exit (range 6) 540 | -9/Materials | Entered Mines 541 | -9/Mines | Learned location of Storage (-8) 541 | -9/Mines | Assembled infested the area 670 | -9/Mines | Build established: Scavenger-Mutant 743 | -9/Mines | A Derelict revealed a hidden shortcut to a safe place 773 | -9/Mines | Entered Zion 839 | -7/Zion | Discovered new exit (range 16) 1034 | -7/Zion | Found Relay Coupler [Programmer] 1036 | -7/Zion | Found Relay Coupler [Programmer] 1073 | -7/Zion | Given the Hacking Drone Bay 1078 | -7/Zion | Found Prototype Device 1079 | -7/Zion | Identified Hacking Drone Bay 1239 | -7/Zion | Met Imprinter 1274 | -7/Zion | Imprinted 1276 | -7/Zion | Declared Zion's savior 1609 | -7/Zion | Found Prototype Device 1934 | -7/Zion | Entered Proximity Caves 1984 | -6/Proximity Caves | Attracted the attention of an 0b10 outpost 1984 | -6/Proximity Caves | Core integrity fell below 50% 1988 | -6/Proximity Caves | Identified Bomb Factory No. 2 2002 | -6/Proximity Caves | Core integrity fell below 20% 2012 | -6/Proximity Caves | Destroyed by Y-64 Sentinel with KE Penetrator Last Messages --------------- 01999_ Imp. Aluminum Leg destroyed. 02000_ Penetrated by Slug. 02002_ Aluminum Leg destroyed. 02003_ Rnf. Deuterium Engine fries itself beyond repair. 02003_ Imp. Light Armor Plating fries itself beyond repair. 02003_ Penetrated by Slug. 02005_ Overheating: Energy bleed (-11). 02005_ L-41 Fighter destroyed. 02006_ Ion Engine broken. 02006_ Overheating: Short circuit. 02006_ Penetrated by Slug. 02009_ Overheating: Energy bleed (-1). 02009_ Hvy. Particle Cannon destroyed. 02009_ Penetrated by Slug. 02009_ Field Laser destroyed. 02010_ Microactuators fries itself beyond repair. 02010_ Aluminum Leg destroyed. 02012_ Penetrated by Slug. Map ----- +----------------------------------------------------+ | ???????????????????# #### #??????????????? | | ???????????????????# ## #???????????????? | | ????????????????????# #???????????????? | | ???????????????????## #???????????????? | | ???????????????????# #???????????????? | | ???????????????????### #???????????????? | | ?????????????????????# ##???????????????? | | ?????????????????????## ##????????????????? | | ??????????????????????## #?????????????????? | | ???????????????????????### ####??????????????? | | ?????????????????????????## #??????????????? | | ??????????????????????????# #??????????????? | | ?????????????????????????## #??????????????? | | ????????????????????????## #??????????????? | | ?????????????????????#### ##??????????????? | | ????????????????###### ##???????????????? | | ????????????????# ########????????????????? | | ????????????????# ## ????????????????????? | | ????????????????# ### ### #??#####??????????????? | | ????????????????# ##### #??""""#??????????????? | | ???????????????## ### #?? ???????????????? | | ??????????????## +?? ????????????????? | | ??????????????# g###//###??????????????? | | ??????????????# g=%# #??????????????? | | ??????????????## ll# #??????????????? | | ???????????????#### %@Y## ## #????????????? | | ??????????????????#######] #????????????? | | ????????????????????????############????????????? | | ????????????????????????????????????????????????? | | ????????????????????????????????????????????????? | | ????????????????????????????????????????????????? | | ????????????????????????????????????????????????? | | ????????????????????????????????????????????????? | | ????????????????????????????????????????????????? | | ????????????????????????????????????????????????? | | ????????????????????????????????????????????????? | | ????????????????????????????????????????????????? | | ????????????????????????????????????????????????? | | ????????????????????????????????????????????????? | | ????????????????????????????????????????????????? | | ????????????????????????????????????????????????? | | ????????????????????????????????????????????????? | | ????????????????????????????????????????????????? | | ????????????????????????????????????????????????? | | ????????????????????????????????????????????????? | | ????????????????????????????????????????????????? | | ????????????????????????????????????????????????? | | ????????????????????????????????????????????????? | | ????????????????????????????????????????????????? | | ????????????????????????????????????????????????? | +----------------------------------------------------+ Best States ------------- Heat Dissipation 28 Energy Generation 14 Energy Capacity 250 Matter Stores 300 Matter Capacity 300 Sight Range 16 Terrain Scan Density 10 Armor Coverage 150 Evasion (%) 55 Matter Filtering 30 Item Schematics ----------------- Imp. Actuator Array | -7/Zion | Archive Shock Absorption System | -7/Zion | Archive Component Analysis Suite | -7/Zion | Archive Plasma Rifle | -7/Zion | Archive Imp. EM Pulse Cannon | -7/Zion | Archive Lgt. Fission Core | -7/Zion | Archive Phase Shifter | -7/Zion | Archive Disruptor Cannon | -7/Zion | Archive Greatsword | -7/Zion | Archive Imp. Cryofiber Web | -7/Zion | Archive Imp. Reaction Control System | -7/Zion | Archive Xenon Bombardment Thruster | -7/Zion | Archive Robot Schematics ------------------ A-02 Transporter | -7/Zion | Archive B-36 Bruiser | -7/Zion | Archive Fabricated ------------ Nothing Alien Tech Used ----------------- None Achievements -------------- None Challenges ------------ None Game ------ Seed MakeshiftBackupBasin Manual? 0 Play Time 00:19:23 Cumulative 15.3 hours Start 2024.09.15 @ 13:34:40 End 2024.09.15 @ 13:52:57 Sessions 1 Manual Loads 0 Difficulty Rogue Special Mode None Game No. 62 Rogue 62 Adventurer 0 Explorer 0 Win Type - Total 0 Types 0/0/0/0/0/0/0/0/0 Lore% 10 Gallery% 20 Achievement% 15 Wizard Run 0 Options --------- Layout 2 ASCII 0 Keyboard 0 Movement Mouse Keybinds 0 Fullscreen 1 Font 16/Smallcaps Map View 55x47 Zoom Use 0% Tactical HUD 1 Map Filters NONE Filters NONE Steam 1 RUN: 12067783-061a-48f3-b8f0-51c4dd98f778